bitfinex/quotes_ETHUSD_20250808
["timestamp","ask_amount","ask_price","bid_price","bid_amount"]
[1754638353996,1.9623,3929.3,3928.8,3.887]
[1754638354207,0.8388442,3929.5,3928.8,3.887]
[1754638354208,0.8388442,3929.5,3928.9,0.55]
[1754638354411,60.042,3929.9,3928.9,3.55]
[1754638354612,0.042,3929.9,3929.0,0.0309]
[1754638354899,0.042,3929.9,3929.1,3.894]
[1754638355491,0.042,3929.9,3929.1,11.22796487]
[1754638356509,0.042,3929.9,3929.2,0.55]
[1754638356685,0.67827087,3929.9,3929.2,0.55]
[1754638357278,28.70942,3929.8,3929.2,0.55]
[1754638357483,28.70942,3929.8,3929.1,7.58916487]
[1754638357827,1.9623,3929.7,3929.2,3.893]
[1754638357972,28.70942,3929.6,3929.2,3.893]
[1754638358171,1.9623,3929.5,3929.2,3.893]
[1754638358469,28.70942,3929.6,3929.2,3.893]
[1754638358875,28.70942,3929.6,3929.2,2.36216401]
[1754638358876,0.4506,3929.6,3929.2,2.36216401]
[1754638359076,29.16002,3929.5,3929.1,7.58916487]
[1754638359311,29.16002,3929.4,3929.2,3.893]
[1754638359489,0.87030365,3929.9,3929.2,3.893]
[1754638359490,29.16002,3929.3,3929.2,3.893]
[1754638359819,19.520433,3929.3,3929.2,3.893]
[1754638359978,19.520433,3929.2,3929.1,7.26702907]
[1754638360391,1.9623,3929.2,3929.1,7.26702907]
[1754638360594,19.520433,3929.4,3929.1,11.16002907]
[1754638360907,5.8553,3929.6,3929.1,11.16002907]
[1754638360908,19.520433,3929.5,3929.1,11.16002907]
[1754638361090,19.520433,3929.5,3929.1,8.94001989]
[1754638361296,1.9623,3929.4,3929.1,8.94001989]
[1754638361499,25.68337427,3929.3,3929.1,5.04701989]
[1754638361677,15.150644,3929.2,3929.1,5.04701989]
[1754638361878,19.9656326,3929.2,3928.5,13.06045608]
[1754638362107,11.64067136,3929.1,3928.5,13.06045608]
[1754638362412,2.4129,3929.0,3928.5,5.97482685]
[1754638362607,5.8553,3928.9,3928.5,5.97482685]
[1754638362808,14.700044,3928.8,3928.5,5.97482685]
[1754638363505,14.700044,3928.8,3928.3,3.894]
[1754638363506,4.95528713,3928.8,3928.3,3.894]
[1754638363698,4.3426,3929.1,3928.3,5.741]
[1754638363895,30.0,3929.0,3928.3,5.7355]
[1754638364098,30.0,3929.0,3928.3,3.894]
[1754638364602,3.892,3928.9,3928.3,0.45072602]
[1754638364901,31.9097,3928.8,3928.4,3.892]
[1754638365208,32.3564,3928.7,3928.3,3.892]
[1754638365402,30.0,3928.6,3928.4,0.54589295]
[1754638365611,30.0,3928.6,3928.3,3.892]
[1754638365612,31.9097,3928.6,3928.5,0.54589295]
[1754638365822,3.49371361,3928.9,3928.5,0.54589295]
[1754638366118,30.0,3928.8,3928.6,0.54589295]
[1754638366286,30.0,3928.8,3928.7,0.54589295]
[1754638366690,30.0,3929.0,3928.7,0.54589295]
[1754638366885,30.0,3929.0,3928.8,0.54589295]
[1754638367080,30.0,3929.0,3928.9,0.54589295]
[1754638367282,33.891,3929.0,3928.9,0.54589295]
[1754638367784,43.89340361,3929.0,3928.4,9.10269043]
[1754638368121,1.20725946,3928.7,3928.4,9.10269043]
[1754638368406,26.60519436,3928.6,3928.4,9.10269043]
[1754638368708,25.22774174,3928.5,3928.4,9.10269043]
[1754638369098,36.2474,3928.5,3928.4,9.10269043]
[1754638369810,35.31706417,3928.5,3928.4,9.10269043]
[1754638370410,33.891,3928.5,3928.4,9.10269043]
[1754638370585,30.0,3928.5,3928.4,2.2934]
[1754638370789,30.0,3928.6,3928.4,2.2934]
[1754638370986,30.0,3928.6,3928.4,2.13836236]
[1754638371695,20.35737021,3928.6,3928.4,2.13836236]
[1754638371902,30.0,3928.6,3928.4,2.13836236]
[1754638372106,3.89,3928.8,3928.4,2.13836236]
[1754638372107,30.0,3928.7,3928.4,2.13836236]
[1754638372708,30.0,3928.7,3928.2,9.10269043]
[1754638372895,31.9097,3928.7,3928.2,9.10269043]
[1754638373092,30.0,3928.6,3928.2,9.10269043]
[1754638373298,20.35786522,3928.6,3928.2,12.99169043]
[1754638373494,30.0,3928.6,3928.2,14.89959043]
[1754638373719,26.55636281,3928.7,3928.5,3.19919957]
[1754638374013,30.0,3928.7,3928.5,3.19919957]
[1754638374529,31.20725946,3928.7,3928.5,1.13299792]
[1754638374686,30.0,3928.6,3928.2,3.889]
[1754638375087,3.889,3928.6,3928.2,3.889]
[1754638375386,30.0,3928.5,3928.2,3.889]
[1754638376195,30.0,3928.5,3928.2,3.9741]
[1754638376387,30.0,3928.5,3928.2,3.889]
[1754638377123,30.0,3928.5,3928.0,5.7295]
[1754638377420,3.887,3928.4,3927.8,3.887]
[1754638377590,30.0,3928.3,3927.8,3.887]
[1754638377789,22.42346711,3928.3,3927.4,0.2552]
[1754638378117,22.42346711,3928.3,3927.6,0.55]
[1754638378317,22.42346711,3928.3,3927.5,4.1422]
[1754638378517,22.42346711,3928.3,3927.6,1.8415]
[1754638379029,30.0,3928.3,3927.6,1.8415]
[1754638379197,3.887,3928.2,3927.6,1.8415]
[1754638379397,30.0,3928.1,3927.6,5.7285]
[1754638379620,30.0,3928.1,3927.8,0.001]
[1754638379808,30.0,3928.1,3927.9,0.54827417]
[1754638380009,30.0,3928.1,3928.0,0.54827417]
[1754638380410,30.0,3928.1,3928.0,2.38977417]
[1754638380610,3.887,3928.2,3928.0,0.54827417]
[1754638380824,31.6402,3928.1,3927.8,0.001]
[1754638380991,33.887,3928.0,3927.9,0.54822783]
[1754638381196,33.887,3928.0,3927.9,2.83234234]
[1754638381923,36.27444127,3928.0,3927.9,0.54822783]
[1754638382125,35.5272,3928.0,3927.9,0.54822783]
[1754638382299,33.887,3928.0,3927.9,0.54822783]
[1754638383595,30.44262385,3928.0,3927.9,0.54822783]
[1754638384605,30.44262385,3928.0,3927.8,0.09507601]
[1754638384834,31.22544063,3927.9,3927.4,1.8415]
[1754638385021,6.377,3928.1,3927.4,1.29273943]
[1754638385022,1.2257674,3927.7,3927.4,1.29273943]
[1754638385214,27.26674816,3927.6,3927.4,1.29273943]
[1754638385414,27.26674816,3927.7,3927.5,0.3358]
[1754638385614,30.0,3927.7,3927.4,2.28411451]
[1754638385926,30.0,3927.9,3927.4,2.28411451]
[1754638386115,30.0,3927.9,3927.4,0.1481]
[1754638386291,30.0,3927.9,3927.2,2.28511451]
[1754638386491,30.0,3927.9,3927.3,0.1769]
[1754638386697,30.0,3927.9,3927.3,2.46101451]
[1754638386910,6.377,3928.1,3927.4,2.28411451]
[1754638386911,33.887,3928.0,3927.4,2.28411451]
[1754638387110,6.377,3928.1,3927.2,0.001]
[1754638387111,30.0,3927.9,3927.5,8.18771451]
[1754638387309,30.0,3928.0,3927.6,2.0166]
[1754638387532,30.0,3928.0,3927.7,0.1751]
[1754638387725,30.0,3928.0,3927.5,6.17111451]
[1754638388027,30.0,3928.0,3927.8,2.2934]
[1754638388210,30.0,3927.8,3927.5,6.17111451]
[1754638388399,30.0,3928.0,3927.5,6.17111451]
[1754638388828,30.0,3928.0,3927.6,2.29]
[1754638389027,30.0,3928.0,3927.7,0.4485]
[1754638389229,30.0,3928.0,3927.8,2.29]
[1754638389432,30.0,3928.0,3927.9,2.29]
[1754638391031,30.0,3928.0,3927.9,1.8415]
[1754638391236,27.24471108,3928.0,3927.9,1.8415]
[1754638391402,30.0,3928.0,3927.9,1.8415]
[1754638391603,30.0,3928.0,3927.9,2.0434]
[1754638393332,30.0,3928.0,3927.9,1.8415]
[1754638393736,27.93353741,3928.0,3927.9,1.8415]
[1754638394325,27.93353741,3928.0,3927.9,5.9448]
[1754638394523,30.0,3928.0,3927.9,6.4948]
[1754638394723,26.55615276,3928.0,3927.9,6.4948]
[1754638395037,6.376,3928.7,3927.9,4.9731064]
[1754638395038,26.55615276,3928.5,3927.9,4.9731064]
[1754638395341,0.6745209,3928.1,3927.9,4.9731064]
[1754638395505,0.6745209,3928.1,3927.9,3.887]
[1754638395506,30.0,3928.0,3927.9,3.887]
[1754638396118,30.0,3928.0,3927.9,4.1012]
[1754638396704,30.0,3928.0,3927.9,4.6509045]
[1754638397245,8.3158,3929.1,3928.0,0.55]
[1754638397246,6.375,3929.1,3928.0,0.55]
[1754638397412,30.0,3928.9,3928.1,0.5497045]
[1754638397614,30.0,3928.9,3928.2,6.4779045]
[1754638397814,30.0,3928.9,3928.3,2.5909045]
[1754638398009,30.0,3928.9,3928.4,0.5497045]
[1754638398320,30.0,3928.9,3928.5,6.4839045]
[1754638398506,28.62258191,3928.9,3928.6,0.7636045]
[1754638398708,30.0,3928.9,3928.7,0.5497045]
[1754638398943,0.65201747,3929.0,3928.8,6.4836045]
[1754638399141,0.65201747,3929.0,3928.9,0.5497045]
[1754638399440,0.65201747,3929.0,3928.9,2.8144045]
[1754638400347,30.65201747,3929.0,3928.9,2.8144045]
[1754638401846,30.65201747,3929.0,3928.9,0.5497045]
[1754638402351,40.0626377,3929.0,3928.9,0.5497045]
[1754638402556,40.0626377,3929.0,3928.9,7e-08]
[1754638402851,0.3076412,3928.9,3928.8,1.8e-07]
[1754638403047,41.60138287,3928.9,3928.8,1.8e-07]
[1754638403453,39.0561412,3928.9,3928.2,1.83035968]
[1754638403616,2.54576003,3928.1,3928.0,0.9151837]
[1754638403826,2.54582484,3928.0,3927.7,0.9151837]
[1754638404026,38.81232484,3928.0,3927.7,0.9151837]
[1754638404336,39.1199661,3928.0,3927.6,0.9151837]
[1754638404941,38.6882661,3928.0,3927.7,0.9151837]
[1754638405141,39.41826818,3928.0,3927.4,0.9151837]
[1754638405340,9.62600035,3928.0,3927.4,0.9151837]
[1754638405553,39.62600035,3928.0,3927.4,0.9151837]
[1754638405857,95.12605701,3928.0,3927.4,0.9151837]
[1754638406070,98.81332484,3928.0,3927.3,0.001]
[1754638406227,99.1209661,3928.0,3927.3,0.001]
[1754638406426,90.30764126,3928.0,3927.3,0.001]
[1754638406657,93.896,3928.0,3927.6,1.8312]
[1754638406863,93.896,3928.0,3927.6,2.132]
[1754638407030,93.896,3928.0,3927.3,0.001]
[1754638407231,93.896,3928.0,3927.3,2.1337]
[1754638407548,33.896,3928.0,3927.3,2.1337]
[1754638408962,33.896,3928.0,3927.5,0.68717167]
[1754638409560,34.20364126,3928.0,3927.5,0.68717167]
[1754638409760,36.14444126,3928.0,3927.5,0.68717167]
[1754638410430,34.20364126,3928.0,3927.5,0.68717167]
[1754638410625,34.20364126,3928.0,3927.6,2.1297]
[1754638410862,30.30764126,3928.0,3927.6,2.1297]
[1754638411427,30.0,3928.0,3927.6,2.1297]
[1754638411843,30.0,3928.0,3927.6,2.81587167]
[1754638412041,30.0,3928.0,3927.6,2.1297]
[1754638412526,30.62556144,3928.0,3927.6,2.1297]
[1754638412727,30.0,3928.0,3927.6,2.1297]
[1754638413664,30.0,3928.0,3927.5,0.68717167]
[1754638413965,32.24844126,3928.0,3927.6,0.68617167]
[1754638414340,32.24844126,3928.0,3927.5,0.68717167]
[1754638414646,32.24844126,3928.0,3927.5,0.001]
[1754638414647,32.97844334,3928.0,3927.5,0.001]
[1754638414843,32.97844334,3928.0,3927.9,0.54990509]
[1754638415029,30.60594334,3928.0,3927.9,0.54990509]
[1754638415365,32.24844126,3928.0,3927.9,0.54990509]
[1754638415565,41.5055679,3928.0,3927.9,0.54990509]
[1754638415753,39.5647679,3928.0,3927.9,0.54990509]
[1754638416158,43.4587679,3928.0,3927.9,0.54990509]
[1754638416568,39.5647679,3928.0,3927.9,0.54990509]
[1754638416882,43.4597679,3928.0,3927.9,0.54990509]
[1754638417076,44.09517839,3928.0,3927.9,0.54990509]
[1754638417548,14.09517839,3928.0,3927.9,0.54990509]
[1754638417748,44.09517839,3928.0,3927.9,0.54990509]
[1754638418067,30.94305175,3928.0,3927.9,0.54990509]
[1754638418267,39.89253713,3928.0,3927.9,0.54990509]
[1754638418449,43.78553713,3928.0,3927.9,0.54990509]
[1754638419953,43.78553713,3928.0,3927.9,1.23607676]
[1754638420681,43.78553713,3928.0,3927.9,3.49217676]
[1754638421065,43.78553713,3928.0,3927.9,0.54990509]
[1754638421066,55.29110503,3928.0,3927.9,0.54990509]
[1754638421387,76.48106136,3928.0,3927.9,0.54990509]
[1754638421552,73.50353652,3928.0,3927.9,0.54990509]
[1754638421751,46.35238408,3928.0,3927.9,0.54990509]
[1754638421952,55.60951072,3928.0,3927.9,0.54990509]
[1754638422152,46.35238408,3928.0,3927.9,0.54990509]
[1754638422385,40.51858408,3928.0,3927.9,0.54990509]
[1754638422604,14.41358408,3928.0,3927.9,0.54990509]
[1754638422882,46.35438408,3928.0,3927.9,0.54990509]
[1754638423091,46.03597839,3928.0,3927.9,0.54990509]
[1754638423985,57.83892987,3928.0,3927.9,0.54990509]
[1754638424354,55.29310503,3928.0,3927.9,0.54990509]
[1754638425254,53.35230503,3928.0,3927.9,0.54990509]
[1754638425457,55.23040503,3928.0,3927.9,0.54990509]
[1754638426789,55.23230337,3928.0,3927.9,0.54990509]
[1754638427468,44.01424011,3928.0,3927.9,0.54990509]
[1754638427895,42.13614011,3928.0,3927.9,0.54990509]
[1754638428775,12.13614011,3928.0,3927.9,0.54990509]
[1754638428979,42.13614011,3928.0,3927.9,0.54990509]
[1754638429590,38.24114011,3928.0,3927.9,0.54990509]
[1754638429762,42.13314011,3928.0,3927.9,0.54990509]
[1754638430090,44.3286458,3928.0,3927.9,0.54990509]
[1754638430292,44.3286458,3928.0,3927.9,1.23607676]
[1754638430802,42.13214011,3928.0,3927.9,0.54990509]
[1754638431002,34.52541049,3928.0,3927.9,2.87450509]
[1754638431200,30.63541049,3928.0,3927.9,2.87450509]
[1754638431492,30.63541049,3928.0,3927.9,3.78968879]
[1754638432391,30.63541049,3928.0,3927.9,2.87450509]
[1754638432578,32.28781934,3928.0,3927.9,2.87450509]
[1754638433394,32.28781934,3928.0,3927.9,4.24622841]
[1754638433560,32.28781934,3928.0,3927.9,2.3256]
[1754638436995,32.28781934,3928.0,3927.9,0.001]
[1754638437606,32.28781934,3928.0,3927.9,1.924]
[1754638438696,30.63541049,3928.0,3927.9,1.924]
[1754638438896,0.63541049,3928.0,3927.9,1.924]
[1754638439106,1.69382789,3928.0,3927.9,1.924]
[1754638439402,32.00146915,3928.0,3927.9,1.924]
[1754638439802,32.00146915,3928.0,3927.9,0.001]
[1754638439803,38.62773929,3928.0,3927.9,0.001]
[1754638439973,46.88283929,3928.0,3927.9,0.001]
[1754638440974,49.86826413,3928.0,3927.9,0.001]
[1754638441605,110.09405782,3928.0,3927.9,0.001]
[1754638443478,106.20636552,3928.0,3927.9,0.001]
[1754638443680,109.11156614,3928.0,3927.9,0.001]
[1754638444972,109.86957183,3928.0,3927.9,0.001]
[1754638446278,110.51167442,3928.0,3927.9,0.001]
[1754638446484,146.94178424,3928.0,3927.9,0.001]
[1754638448586,146.62337855,3928.0,3927.9,0.001]
[1754638449683,146.18377855,3928.0,3927.9,0.001]
[1754638450140,116.18377855,3928.0,3927.9,0.001]
[1754638450297,146.18377855,3928.0,3927.9,0.001]
[1754638451418,146.62337855,3928.0,3927.9,0.001]
[1754638451590,146.18377855,3928.0,3927.9,0.001]
[1754638452688,146.50218424,3928.0,3927.9,0.001]
[1754638454742,155.4462308,3928.0,3927.9,0.001]
[1754638455249,154.55089912,3928.0,3927.9,0.001]
[1754638455452,164.85381,3928.0,3927.9,0.001]
[1754638455840,150.14076501,3928.0,3927.9,0.001]
[1754638456141,152.10846501,3928.0,3927.9,0.001]
[1754638456631,151.79005932,3928.0,3927.9,0.001]
[1754638458122,2.54607566,3927.7,3927.5,0.001]
[1754638458320,30.0,3927.5,3925.9,10.01]
[1754638458535,31.33679059,3926.2,3925.9,1.93375255]
[1754638458746,31.33679059,3926.2,3926.0,0.54960968]
[1754638458927,31.33679059,3926.2,3926.1,0.0773]
[1754638459124,31.33679059,3926.2,3925.9,1.93375255]
[1754638459125,61.33679059,3926.2,3925.9,1.93375255]
[1754638459433,30.0,3926.1,3925.6,0.2552]
[1754638459634,7.30291088,3925.7,3925.6,0.2552]
[1754638459937,7.30291088,3925.7,3925.5,3.889]
[1754638460520,7.30291088,3925.7,3925.6,0.2552]
[1754638461107,7.30291088,3925.7,3925.6,2.1692]
[1754638462045,7.30291088,3925.7,3925.5,1.19415255]
[1754638463525,1.46565844,3925.6,3925.5,1.19415255]
[1754638463928,1.46565844,3925.6,3925.5,2.20555255]
[1754638464127,0.54962191,3925.6,3925.5,2.21705255]
[1754638466240,1.46579126,3925.6,3925.5,2.21705255]
[1754638466440,0.54962191,3925.6,3925.5,2.21705255]
[1754638467546,0.54962191,3925.6,3925.5,7.4188578]
[1754638467746,0.68756716,3926.0,3925.9,0.2552]
[1754638468141,1.46579126,3926.2,3925.9,1.2666]
[1754638468444,1.46579126,3926.2,3926.1,0.8052]
[1754638468814,1.46579126,3926.2,3926.1,1.8166]
[1754638469237,0.54962191,3926.2,3926.1,8.1556]
[1754638469426,0.54962191,3926.2,3926.1,4.2666]
[1754638469635,0.54962191,3926.2,3926.1,8.1556]
[1754638469835,1.9236767,3926.2,3926.1,8.1556]
[1754638470035,1.9236767,3926.2,3926.1,7.1442]
[1754638470426,2.57570383,3926.2,3926.1,7.6942]
[1754638470753,2.57570383,3926.2,3926.1,8.7056]
[1754638472250,1.20059513,3926.2,3926.1,8.1556]
[1754638472857,1.20059513,3926.2,3926.1,8.7372]
[1754638475323,1.20059513,3926.2,3926.1,7.7258]
[1754638477257,1.20059513,3926.2,3926.1,6.34792947]
[1754638477458,1.20059513,3926.2,3926.1,1.90892947]
[1754638477642,10.47120601,3926.2,3926.1,3.888]
[1754638477840,3.16829513,3926.2,3926.1,1.53408202]
[1754638478038,10.47120601,3926.2,3926.1,3.888]
[1754638478240,12.30475231,3926.2,3926.1,3.888]
[1754638478627,12.30475231,3926.2,3926.1,2.01067053]
[1754638478957,12.30475231,3926.2,3925.9,3.888]
[1754638479183,7.30291088,3926.0,3925.6,0.7244]
[1754638479456,8.67803993,3925.7,3925.6,0.7244]
[1754638479657,8.67803993,3925.7,3925.6,4.6932]
[1754638479658,7.85316445,3925.7,3925.6,4.6932]
[1754638480322,7.85316445,3925.7,3925.6,5.1624]
[1754638480522,9.22828269,3925.7,3925.6,5.1624]
[1754638480938,7.85316445,3925.7,3925.6,5.1624]
[1754638482343,7.85316445,3925.7,3925.6,4.6124]
[1754638484865,7.85316445,3925.7,3925.6,5.1624]
[1754638485369,8.47813732,3925.7,3925.6,4.6124]
[1754638486348,9.85314781,3925.7,3925.6,4.6124]
[1754638487157,9.85314781,3925.7,3925.1,0.041]
[1754638487158,14.30843732,3925.7,3925.1,0.041]
[1754638487435,8.67801249,3925.3,3924.6,3.888]
[1754638487654,7.30291088,3924.8,3924.6,3.888]
[1754638487858,7.85316445,3924.8,3924.6,3.888]
[1754638488058,9.79546445,3924.8,3924.6,3.888]
[1754638489367,11.16944807,3924.8,3924.6,3.888]
[1754638489969,11.16944807,3924.8,3924.6,3.889]
[1754638490583,7.85316445,3924.8,3924.7,3.001]
[1754638490882,7.85316445,3924.8,3924.7,3.448]
[1754638491045,9.79546445,3924.8,3924.7,3.448]
[1754638491777,9.79546445,3924.8,3924.7,3.001]
[1754638492158,9.79546445,3924.8,3924.7,3.448]
[1754638492557,9.79546445,3924.8,3924.7,3.41718453]
[1754638493183,9.79546445,3924.8,3924.7,2.97018453]
[1754638493552,9.79546445,3924.8,3924.6,3.41309351]
[1754638493880,9.79546445,3924.8,3924.6,0.65622077]
[1754638493881,0.55025357,3924.7,3924.6,0.65622077]
[1754638494082,0.55025357,3924.7,3924.6,1.10322077]
[1754638495956,2.49255357,3924.7,3924.6,0.65622077]
[1754638497460,3.86393373,3924.7,3924.6,0.65622077]
[1754638497854,3.86393373,3924.7,3924.3,0.001]
[1754638498185,7.30291088,3924.4,3924.2,3.2552]
[1754638498485,3.40685176,3924.3,3924.2,3.2552]
[1754638499464,3.40685176,3924.3,3924.1,4.376]
[1754638499465,3.40685176,3924.3,3924.1,3.929]
[1754638499664,1.9423,3924.2,3924.1,3.929]
[1754638500094,2.85659819,3924.2,3924.1,3.929]
[1754638500303,2.85659819,3924.2,3923.5,6.123]
[1754638500524,7.30291088,3923.6,3923.4,4.337]
[1754638500667,0.55025357,3923.5,3923.4,0.001]
[1754638500871,2.49255357,3923.5,3923.4,0.001]
[1754638501407,3.86393373,3923.5,3923.4,0.001]
[1754638501771,0.55025357,3923.5,3923.4,0.448]
[1754638502399,0.55025357,3923.5,3923.4,0.998]
[1754638504179,1.46354405,3923.5,3923.4,0.998]
[1754638504380,0.55025357,3923.5,3923.4,0.998]
[1754638504794,2.49255357,3923.5,3923.4,0.551]
[1754638504997,2.49255357,3923.5,3923.4,0.001]
[1754638505397,3.86393373,3923.5,3923.1,0.041]
[1754638505704,7.30291088,3923.2,3923.1,0.591]
[1754638506008,10.70885041,3923.2,3923.1,0.591]
[1754638506423,8.76655041,3923.2,3923.1,1.038]
[1754638507088,10.70885041,3923.2,3923.1,0.591]
[1754638507790,10.70885041,3923.2,3923.1,1.038]
[1754638507995,8.76655041,3923.2,3923.1,1.038]
[1754638508195,7.85316445,3923.2,3923.1,1.038]
[1754638508602,8.76655041,3923.2,3923.1,1.038]
[1754638508991,10.70885041,3923.2,3923.1,0.591]
[1754638509385,10.70885041,3923.2,3923.1,0.041]
[1754638509600,9.79546445,3923.2,3923.1,0.041]
[1754638510000,10.70868457,3923.2,3923.1,0.041]
[1754638510406,9.79546445,3923.2,3923.1,0.041]
[1754638513483,11.16684461,3923.2,3923.1,0.041]
[1754638513979,15.05684461,3923.2,3923.1,0.041]
[1754638515713,13.68546445,3923.2,3923.1,0.041]
[1754638518184,14.59980449,3923.2,3923.1,0.041]
[1754638518384,13.68546445,3923.2,3923.1,0.041]
[1754638519892,13.68546445,3923.2,3922.6,0.20531608]
[1754638520222,7.30291088,3922.7,3922.6,0.75531608]
[1754638520423,7.85157343,3922.7,3922.6,0.20531608]
[1754638520621,7.85157343,3922.7,3922.6,0.55]
[1754638520795,7.85157343,3922.7,3922.6,1.5614]
[1754638521204,7.85157343,3922.7,3922.6,0.55]
[1754638521205,0.54866255,3922.7,3922.6,0.55]
[1754638521404,0.68582818,3923.1,3922.6,0.55]
[1754638521405,0.68582818,3923.1,3922.7,0.55]
[1754638521621,7.30291088,3923.0,3922.9,3.55]
[1754638521819,7.85157343,3923.0,3922.9,4.44]
[1754638522003,7.85157343,3923.0,3922.9,7.8915]
[1754638524630,8.53807958,3923.0,3922.9,7.8915]
[1754638524834,1.2351687,3923.0,3922.9,7.8915]
[1754638525050,7.98941703,3923.0,3922.9,7.8915]
[1754638525338,8.53807958,3923.0,3922.9,7.44]
[1754638525650,9.78477343,3923.0,3922.9,7.44]
[1754638526406,0.54866255,3923.0,3922.9,7.8915]
[1754638526702,1.45480082,3923.1,3923.0,3.0]
[1754638526948,1.45480082,3923.1,3923.0,1.0015]
[1754638527107,0.54036053,3923.1,3923.0,1.0015]
[1754638527441,1.92004271,3923.2,3923.1,0.55]
[1754638527620,0.54866255,3923.2,3923.1,0.55]
[1754638528603,0.54866255,3923.2,3923.1,1.0015]
[1754638529308,1.92004271,3923.2,3923.1,1.0015]
[1754638529531,0.54866255,3923.2,3923.1,1.0015]
[1754638530641,0.54866255,3923.2,3923.1,7.8905]
[1754638531616,0.54866255,3923.2,3923.1,6.51163649]
[1754638532012,2.48186255,3923.2,3923.1,6.51163649]
[1754638532521,3.47273643,3923.2,3923.1,6.51163649]
[1754638532916,8.37594731,3923.2,3923.1,6.51163649]
[1754638537210,10.30914731,3923.2,3923.1,6.51163649]
[1754638537515,10.30914731,3923.2,3923.1,6.51263649]
[1754638538745,8.37594731,3923.2,3923.1,6.51263649]
[1754638539447,10.30914731,3923.2,3923.1,6.51263649]
[1754638541232,10.77564731,3923.2,3923.1,6.51263649]
[1754638541743,10.30914731,3923.2,3923.1,6.51263649]
[1754638542817,10.30914731,3923.2,3923.1,1.44434044]
[1754638546748,10.30914731,3923.2,3923.1,0.001]
[1754638547552,10.77594731,3923.2,3923.1,0.001]
[1754638552856,10.77594731,3923.2,3922.9,3.888]
[1754638553055,0.54866255,3923.1,3922.9,3.888]
[1754638553254,2.86946255,3923.1,3922.7,0.001]
[1754638553459,2.86946255,3923.1,3922.8,0.55]
[1754638553648,1.82945321,3922.9,3922.8,0.55]
[1754638553842,3.68345321,3923.0,3922.8,0.55]
[1754638554261,1.854,3922.9,3922.7,3.889]
[1754638554427,1.83805184,3922.8,3922.7,0.001]
[1754638554630,9.60776272,3922.8,3922.7,0.001]
[1754638554940,10.17237343,3922.8,3922.7,0.001]
[1754638555141,12.00989129,3922.8,3922.7,0.001]
[1754638555655,11.54309129,3922.8,3922.7,0.001]
[1754638555958,9.70557343,3922.8,3922.7,0.001]
[1754638557329,10.17237343,3922.8,3922.7,0.001]
[1754638557633,10.17237343,3922.8,3922.1,0.04]
[1754638557828,7.30291088,3922.2,3922.1,0.04]
[1754638558133,7.85157343,3922.2,3922.1,0.04]
[1754638558326,9.70557343,3922.2,3922.1,0.04]
[1754638558726,0.54866255,3922.2,3922.1,2.0665]
[1754638558957,0.54866255,3922.4,3922.2,0.55]
[1754638559159,7.30291088,3922.6,3922.4,0.55]
[1754638559160,0.54866255,3922.5,3922.4,0.55]
[1754638559323,1.92550842,3922.5,3922.4,1.0151]
[1754638559529,0.54866255,3922.5,3922.4,1.0151]
[1754638560060,0.54866255,3922.5,3922.4,2.0265]
[1754638560269,0.54866255,3922.5,3922.4,1.0151]
[1754638560756,1.92550842,3922.5,3922.4,0.55]
[1754638561291,1.92550842,3922.5,3922.3,3.888]
[1754638561446,1.376863,3922.4,3922.3,3.888]
[1754638561960,2.40266255,3922.5,3922.3,3.888]
[1754638562266,0.54866255,3922.5,3922.3,3.888]
[1754638562753,0.54866255,3922.5,3922.3,4.3531]
[1754638564162,0.54866255,3922.5,3922.3,3.888]
[1754638565642,7.85157343,3922.5,3922.4,0.4651]
[1754638565835,7.85157343,3922.5,3922.4,2.0265]
[1754638566874,7.85157343,3922.5,3922.4,1.0151]
[1754638567375,7.85157343,3922.5,3922.4,0.55]
[1754638567573,7.85157343,3922.5,3922.4,3.887]
[1754638567788,10.17237343,3922.5,3922.4,3.887]
[1754638568584,10.17237343,3922.5,3922.4,1.81842936]
[1754638571180,13.17237343,3922.5,3922.4,1.81842936]
[1754638574075,15.00940483,3922.5,3922.4,1.81842936]
[1754638574283,13.17237343,3922.5,3922.4,1.81842936]
[1754638575160,3.0,3922.4,3922.1,3.927]
[1754638575368,10.30291088,3922.2,3922.1,4.477]
[1754638575570,10.85157343,3922.2,3922.1,4.477]
[1754638576461,10.85157343,3922.2,3922.1,3.927]
[1754638578477,12.74277343,3922.2,3922.1,1.85839702]
[1754638580202,13.19187343,3922.2,3922.1,1.85839702]
[1754638580362,12.74277343,3922.2,3922.1,1.85839702]
[1754638580990,12.74277343,3922.2,3922.1,1.85939702]
[1754638582570,12.74277343,3922.2,3922.1,0.48033558]
[1754638583690,3.0,3922.1,3921.9,3.886]
[1754638583885,10.85157343,3922.0,3921.9,4.436]
[1754638584997,12.68835256,3922.0,3921.9,4.436]
[1754638585202,12.68835256,3922.0,3921.9,3.886]
[1754638586480,12.74277343,3922.0,3921.9,4.436]
[1754638586680,10.85157343,3922.0,3921.9,4.436]
[1754638586862,12.68859222,3922.0,3921.9,4.436]
[1754638587066,10.85157343,3922.0,3921.9,4.436]
[1754638588371,10.85157343,3922.0,3921.9,2.36739303]
[1754638588572,12.68879856,3922.0,3921.9,2.36739303]
[1754638589067,12.14013601,3922.0,3921.9,2.36739303]
[1754638589402,5.38838617,3922.0,3921.9,1.81739303]
[1754638589604,5.38838617,3922.0,3921.9,2.25249303]
[1754638589807,5.38838617,3922.0,3921.9,3.83939087]
[1754638590006,3.55116104,3922.0,3921.9,4.19783212]
[1754638590174,3.0,3922.0,3921.9,3.81389303]
[1754638591871,0.55116104,3922.2,3922.1,0.2552]
[1754638592068,1.83922513,3922.5,3922.2,0.55]
[1754638592275,1.83722513,3922.6,3922.4,0.55]
[1754638592473,1.83722513,3922.7,3922.6,0.8052]
[1754638592670,1.83669179,3922.8,3922.7,0.8052]
[1754638592980,0.002,3922.9,3922.8,0.8052]
[1754638593192,0.002,3922.9,3922.8,1.2403]
[1754638593408,0.002,3922.9,3922.8,2.2497]